Cogmind - Beta 10.2 *** ADVENTURER MODE // 2022.01.10 @ 17:39:54 Player: Petrus Result: Destroyed by G-47 Trooper with Particle Gun Performance ------------- Evolutions (0) 0 Regions Visited (1) 200 Robots Destroyed (6) 30 Value Destroyed (188) 188 Prototype IDs (0) 0 Alien Tech Used (0) 0 Bonus (0) 0 TOTAL SCORE: 418 Bonus ------- None Cogmind --------- Core Integrity 0/250 Matter 300/300 Energy 100/100 System Corruption 1% Temperature Cool (9) Movement Core (100) Ox1 Location -10/Materials Parts ------- > --- POWER (1) -------- (None) > --- PROPULSION (2) --- (None) > --- UTILITY (2) ------ Small Storage Unit Targeting Computer > --- WEAPON (2) ------- (None) > --- INVENTORY (6) ---- ECM Suite Peak State ------------ > --- POWER ------------ Ion Engine > --- PROPULSION ------- Compact Wheel Compact Wheel > --- UTILITY ---------- Small Storage Unit Targeting Computer > --- WEAPON ----------- Medium Laser Assault Rifle > --- INVENTORY -------- EM Pulse Gun Welding Torch [Rating: 7] Favorites ----------- Power Ion Engine Engine Ion Engine Propulsion Compact Wheel Wheel Compact Wheel Utility Small Storage Unit Storage Small Storage Unit Processor Targeting Computer Weapon Medium Laser Energy Gun Medium Laser Ballistic Gun Assault Rifle Special Weapon Welding Torch Special Melee Weapon Datajack Build | -11 -10 ------- Run | Scr Mat Slots Evolved . | . . Power . | . . Propulsion . | . . Utility . | . . Weapon . | . . Parts Attached 15 | 6 9 Power 1 | 1 . Engine 1 | 1 . Core . | . . Reactor . | . . Propulsion 4 | 2 2 Treads . | . . Leg . | . . Wheel 4 | 2 2 Hover . | . . Flight . | . . Utility 2 | 1 1 Device . | . . Storage 1 | 1 . Processor 1 | . 1 Hackware . | . . Protection . | . . Artifact . | . . Weapon 8 | 2 6 Energy Gun 3 | 1 2 Energy Cannon . | . . Ballistic Gun 3 | 1 2 Ballistic Cannon . | . . Launcher . | . . Special Weapon 1 | . 1 Impact Weapon . | . . Slashing Weapon . | . . Piercing Weapon . | . . Special Melee Weapon 1 | . 1 Unidentified Prototypes . | . . Parts Lost 5 | . 5 Power . | . . Propulsion 1 | . 1 Utility . | . . Weapon 4 | . 4 Highest Loss Streak 3 | . 3 Average Slot Usage (%) 71 | . 71 Engine 6 | . 6 Wheel 19 | . 19 Storage 14 | . 14 Processor 10 | . 10 Energy Gun 8 | . 8 Ballistic Gun 10 | . 10 Naked Turns . | . . Heaviest Build 13 | 13 13 Greatest Support 16 | 3 16 Greatest Overweight (x) 4 | 4 4 Average Overweight (x) 2 | 2 1 Largest Inventory Capacity 6 | 6 6 Average Capacity 5 | 5 6 Most Carried 5 | 4 5 Average Carried 1 | 1 1 Final Capacity 6 | 6 6 Final Carried 1 | 1 1 Class Distribution -------------------- 100% | Mutant Dominant Class ---------------- Mutant | -10/Materials Resources | -11 -10 ----------- Run | Scr Mat Matter Collected 461 | 250 211 Remotely . | . . Salvage Created 255 | . 255 Parts 10 | . 10 Haulers Intercepted . | . . Recyclers Shooed . | . . Parts Field Recycled . | . . Retrieved Matter . | . . Parts Self-Destructed . | . . Prevented . | . . Kills | -11 -10 ------- Run | Scr Mat Combat Hostiles Destroyed 5 | . 5 Guns 5 | . 5 Classes Destroyed 2 | . 2 Builder 1 | . 1 Grunt 5 | . 5 Best Kill Streak 4 | . 4 Combat Bots Only 3 | . 3 Max Kills in Single Turn 1 | . 1 Gunslinging . | . . Exploded . | . . Melee . | . . Uniques/NPCs Destroyed . | . . Combat | -11 -10 -------- Run | Scr Mat Damage Taken 561 | . 561 Core 259 | . 259 Absorbed by Shields . | . . Core Remaining (%) 100 | 100 . Volleys Fired 27 | . 27 Largest 2 | . 2 Hottest 60 | . 60 Shots Fired 35 | . 35 Gun 35 | . 35 Cannon . | . . Launcher . | . . Special . | . . Kinetic 27 | . 27 Thermal . | . . Explosive . | . . Electromagnetic 8 | . 8 Robot Hit Streak 10 | . 10 Robot Miss Streak 1 | . 1 Penetration Max . | . . Secondary Targets 2 | . 2 Max Gunslinging Chain 1 | . 1 Shots Hit Robots 31 | . 31 Core Hits 11 | . 11 Critical Hits 2 | . 2 Critical Kills 1 | . 1 Critical Parts Destroyed 1 | . 1 Melee Attacks 1 | . 1 Impact . | . . Slashing . | . . Piercing . | . . Sneak Attacks . | . . Combat Hostiles . | . . Follow-up Attacks . | . . Damage Inflicted 363 | . 363 Guns 354 | . 354 Cannons . | . . Explosions . | . . Melee . | . . Ramming 9 | . 9 Kinetic 276 | . 276 Thermal . | . . Explosive . | . . Electromagnetic 78 | . 78 Impact . | . . Slashing . | . . Piercing . | . . Highest Corruption 1 | . 1 Average Corruption 1 | . 1 Corruption Purged . | . . Effects 2 | . 2 Message Errors 1 | . 1 Targeting Errors 1 | . 1 Overload Shots . | . . Overflow Damage . | . . Projectiles . | . . Explosions . | . . Melee . | . . Knockbacks . | . . Impact . | . . Kinetic . | . . Secondary . | . . Self-Inflicted Damage 4 | . 4 Shots . | . . Rammed 2 | . 2 Targets Rammed 2 | . 2 Kicked . | . . Crushed . | . . Highest Temperature 10 | . 10 Average Temperature 3 | . 3 Received Heat Transfer 405 | . 405 Siege Activations . | . . Robots Corrupted . | . . Combat Hostiles . | . . Parts Fried . | . . Impact Corruptions . | . . Robots Melted . | . . Combat Hostiles . | . . Parts Melted . | . . Heat Transferred . | . . Parts Sabotaged . | . . Parts Stolen . | . . Parts Stripped . | . . Power Chain Reactions . | . . Missiles Intercepted . | . . Alert | -11 -10 ------- Run | Scr Mat Peak Influence 125 | . 125 Initial . | . . Average 27 | . 36 Maximum Alert Level . | . . Low Security (%) 100 | 100 100 Level 1 . | . . Level 2 . | . . Level 3 . | . . Level 4 . | . . Level 5 . | . . High Security . | . . Max Security . | . . Squads Dispatched 2 | . 2 Investigation 2 | . 2 Extermination . | . . Reinforcement . | . . Assault . | . . Garrison . | . . Intercept . | . . Construction Impeded . | . . Haulers Reinforced . | . . Stealth | -11 -10 --------- Run | Scr Mat Distress Signals . | . . Communications Jammed . | . . Distress Signals . | . . Times Spotted 7 | . 7 Peak Tracking Total 4 | . 4 Tactical Retreats . | . . Traps | -11 -10 ------- Run | Scr Mat Traps Triggered 4 | . 4 Indirectly . | . . Trap Hack Attempts . | . . Triggered . | . . Disarmed . | . . Reprogrammed . | . . Reused . | . . Traps Extracted . | . . Installed . | . . Triggered . | . . Machines | -11 -10 ---------- Run | Scr Mat Machines Disabled . | . . Max in Single Turn . | . . Machines Sabotaged . | . . Garrisons Compromised . | . . Overloaded Fab Kills . | . . Fab Network Shutdowns . | . . Hacking | -11 -10 --------- Run | Scr Mat Machines Accessed 3 | . 3 Terminals 2 | . 2 Fabricators . | . . Repair Stations . | . . Recycling Units 1 | . 1 Scanalyzers . | . . Garrison Access . | . . Total Hacks 13 | . 13 Successful 12 | . 12 Failed 1 | . 1 Catastrophic 1 | . 1 Database Lockouts . | . . Manual . | . . Terminals 10 | . 10 Fabricators . | . . Repair Stations . | . . Recycling Units 3 | . 3 Scanalyzers . | . . Garrison Access . | . . Terminal Hacks 9 | . 9 Record 8 | . 8 Alert Level 1 | . 1 Fabricator Hacks . | . . Repair Station Hacks . | . . Recycling Unit Hacks 3 | . 3 Recycle Component 1 | . 1 Process 1 | . 1 Retrieve Components 1 | . 1 Scanalyzer . | . . Garrison Access Hacks . | . . Unauthorized Hacks . | . . Terminals . | . . Fabricators . | . . Repair Stations . | . . Recycling Units . | . . Scanalyzers . | . . Garrison Access . | . . Data Cores Recovered . | . . Used . | . . Hacking Detections 2 | . 2 Full Trace Events 2 | . 2 Feedback Events . | . . Feedback Blocked . | . . Robot Schematics Acquired . | . . Robots Built . | . . Matter . | . . Time . | . . Total Robot Build Rating . | . . Part Schematics Acquired . | . . Parts Built . | . . Matter . | . . Time . | . . Total Part Build Rating . | . . Parts Repaired . | . . Time . | . . Parts Recycled 1 | . 1 Recycled Matter 7 | . 7 Retrieved Matter . | . . Retrieved Components . | . . Parts Scanalyzed . | . . Part Schematics Acquired . | . . Parts Damaged . | . . Bothacking | -11 -10 ------------ Run | Scr Mat Used RIF Installer . | . . Robots Hacked 1 | . 1 Non-combat . | . . Combat 1 | . 1 Robot Hacks Applied 1 | . 1 parse_system 1 | . 1 Relay Couplers Released . | . . Robots Rewired . | . . Allies Hacked . | . . Hacks Repelled . | . . Allies | -11 -10 -------- Run | Scr Mat Total Allies . | . . Largest Group . | . . Highest-Rated Group . | . . Highest-Rated Ally . | . . Total Orders . | . . Ally Attacks . | . . Total Damage . | . . Kills . | . . Allies Corrupted . | . . Allies Melted . | . . Intel | -11 -10 ------- Run | Scr Mat Robot Analysis Total . | . . Derelict Logs Recovered . | . . Drone Launches . | . . Drone Recoveries . | . . Exploration | -11 -10 ------------- Run | Scr Mat Turns Passed 475 | 110 365 Spaces Moved 228 | 51 177 Core 163 | 51 112 Treads . | . . Legs . | . . Wheels 65 | . 65 Hover . | . . Flight . | . . Fastest Speed 50 | 50 100 Average Speed 165 | 190 158 Slowest Speed 250 | 250 250 Overloaded Moves . | . . Propulsion Burnouts . | . . Robots Hopped . | . . Cave-ins Triggered . | . . Exploration Rate (%) 14 | 4 24 Regions Visited 1 Branch Regions . Pre-discovered Areas . | . . Known Exits Taken . | . . Unknown Exits Taken 1 | 1 . Scrap Searched . | . . Spaces Dug . | . . Terrain Destroyed . | . . Melee . | . . Projectile . | . . AOE . | . . Terrain Rammed . | . . Walls Destroyed . | . . Machines Disabled . | . . Actions | -11 -10 --------- Run | Scr Mat Total 292 | 66 226 Wait 1 | 1 . Move 227 | 50 177 Hop . | . . Pick Up 18 | 8 10 Fast Attach . | . . Attach 15 | 6 9 Detach . | . . Swap . | . . Drop 1 | 1 . Fire 27 | . 27 Melee 1 | . 1 Ram 2 | . 2 Kick . | . . Crush . | . . Escape Stasis . | . . Rewire . | . . Trap . | . . Miscellaneous . | . . Route ------- -11/Scrapyard -10/Materials History --------- Turn | Location | Event 49 | -11/Scrapyard | Discovered new exit (range 14) 111 | -11/Scrapyard | Entered Materials 333 | -10/Materials | Build established: Mutant 388 | -10/Materials | Core integrity fell below 50% 453 | -10/Materials | Core integrity fell below 20% 476 | -10/Materials | Destroyed by G-47 Trooper with Particle Gun Last Messages --------------- 00414_ Acquired 10 matter. 00417_ K-01 Serf cleans the Terminal. 00419_ U-05 Engineer lays Concrete. 00421_ K-01 Serf collects debris. 00425_ Acquired Datajack. Bump into an enemy to attack with the active melee weapon. Even while active, melee weapons do not fire together with ranged weapons in the same volley. 00432_ Welding Torch destroyed. 00433_ Jacked G-47 Trooper... >>parse_system Reading system data... 00434_ Datajack destroyed. 00448_ Com. Wheel destroyed. 00454_ Slammed into G-47 Trooper. 00455_ Targeting Computer permanently disabled. 00455_ Destabilizing: Short circuit. 00462_ K-01 Serf cleans the Terminal. 00473_ Acquired ECM Suite. [Achievement: First Step to Greatness] Map ----- +----------------------------------------------------+ | ?????????????????????????????????????????????????? | | ?????????????????????????????????????????????????? | | ?????????????????????????????????????????????????? | | ?????????????????????????????????????????????????? | | ?????????????????????????????????????????????????? | | ?????????????????????????????????????????????????? | | ?????????????????????????????????????????????????? | | ?????????????????????????????????????????????????? | | ?????????????????????????????????????????????????? | | ?????????????????????????????????????????????????? | | ?????????????????????????????????????????????????? | | ??????????????????????????????????#+##???????????? | | ?????????????????????????????????? ???????????? | | ?????????????????????????????????? #???????????? | | ????????????????????????????????? #???????????? | | ?????????????????????????????????# #???????????? | | ?????????????????????????????????# #???????????? | | ??????????????????????????#####??# #???????????? | | ????????????????????#??"""""" #??# #???????????? | | ????????????????????# """"""" #??# #???????????? | | ????????????????????# """"""" #??# #???????????? | | ????????????????????# """"""" #??# #???????????? | | ????????????????????# """"""" #### #???????????? | | ????????????????????# /gg #???????????? | | ????????????????????+ #### ###########?? | | ????????????????????# ! @ #??# ## %% #?? | | ????????????????????###########?## ## """"" #?? | | ????????????????????????????????# # """"" #?? | | ????????????????????????????????# # """"" #?? | | ????????????????????????????????# T / """"" #?? | | ????????????????????????????????# # """"" #?? | | ????????????????????????????????# % # """"" #?? | | ????????????????????????????????##%% ## """"" #?? | | ??????????????????????????######## ## #?? | | ??????????????????????????# #% ##+########?? | | ??????????????????????????# "" # ###??????? | | ??????????????????????????# "Y # #T###????? | | ??????????????????????????# "" # ^^ #????? | | ??????????????????????????# # #????? | | ??????????????????????????# """ + #????? | | ??????????????????????????# """ # #????? | | ??????????????????????????# """ # #????? | | ??????????????????????????# # "T" #????? | | ??????????????????????????# # #????? | | ??????????????????????????# # #????? | | ??????????????????????????##########+## #????? | | ?????????????????????????????# # ####### | | ?????????????????????????????# """ # # | | ?????????????????????????????# """ # # " | | ?????????????????????????????# """ %# # "" | +----------------------------------------------------+ Best States ------------- Heat Dissipation 25 Energy Generation 5 Energy Capacity 250 Matter Stores 300 Matter Capacity 300 Sight Range 16 Terrain Scan Density 10 Resistance: KI 20 Resistance: TH 20 Resistance: EX 20 Resistance: EM 20 Resistance: I 20 Resistance: S 20 Resistance: P 20 Evasion (%) 50 Targeting Accuracy 5 Offensive Hacking 10 Item Schematics ----------------- None Robot Schematics ------------------ None Fabricated ------------ Nothing Alien Tech Used ----------------- None Achievements -------------- First Step to Greatness Challenges ------------ None Game ------ Seed ChipPrecisionCapacitor Manual? 0 Play Time 00:19:52 Cumulative 9.8 hours Start 2022.01.10 @ 17:17:35 End 2022.01.10 @ 17:39:54 Sessions 1 Manual Loads 0 Difficulty Adventurer Special Mode None Game No. 5 Rogue 3 Adventurer 2 Explorer 0 Win Type - Total 0 Types 0/0/0/0/0/0/0/0/0 Lore% 2 Gallery% 4 Achievement% 2 Wizard Run 0 Options --------- ASCII 0 Keyboard 0 Movement Mouse Keybinds 0 Fullscreen 1 Font 24/Cog Map View 76x50 Tactical HUD 1 Map Filters NONE Filters NONE Steam 1 RUN: 150d1a7b-52ff-47d3-90b2-81805d97f9c2